fUSD/lending_fUSD_20240224
["ID","MTS","AMOUNT","RATE_DAILY","PERIOD"]
[315035747,1708740643792,-4797.20827886,0.000349,2]
[315035748,1708740643801,-4797.20827886,0.000349,2]
[315035749,1708740643810,-4797.20827886,0.000349,2]
[315035750,1708740643820,-2019.383649,0.00034931,2]
[315035751,1708740643829,-26902.236974,0.00034931,2]
[315035752,1708740643838,-5380.447395,0.00034931,2]
[315035753,1708740643847,-1605.75521451,0.00034931,2]
[315035754,1708740643860,-3466.62793216,0.00034931,2]
[315035755,1708740643876,-1653.17609633,0.00034931,2]
[315035756,1708740643885,-152.50109945,0.00034959,2]
[315035757,1708740643894,-169.54208501,0.0003499,2]
[315035758,1708740643904,-150.15,0.00034995,2]
[315035759,1708740643914,-586.97017541,0.00035,4]
[315035760,1708740643923,-229.23043553,0.00035,7]
[315035761,1708740643931,-1084.14308014,0.00035,2]
[315035762,1708740643943,-25578.71480578,0.00035,2]
[315035763,1708740643954,-3432.00650926,0.00035,2]
[315035764,1708740643974,-635.79476878,0.00035,2]
[315035765,1708740644061,-5136.1,0.00035,2]
[315035766,1708740644198,-1149.83623093,0.00028354,2]
[315035767,1708740644211,-322.6001314,0.00028354,2]
[315035768,1708740644222,-7021.06225816,0.00028354,2]
[315035769,1708740644235,-848.8811565,0.00028354,2]
[315035770,1708740644247,-1291.07713208,0.00028354,2]
[315035771,1708740644258,-2724.74941632,0.00028354,2]
[315035772,1708740644270,-514.82967214,0.00028354,2]
[315035773,1708740644280,-10068.6637288,0.00030174,2]
[315035774,1708740644290,-1339.22032719,0.00035,2]
[315035775,1708740644305,-3132.20866522,0.00035,2]
[315035776,1708740644316,-4130.00493092,0.00035,2]
[315035777,1708740644327,-398.79393775,0.00035,2]
[315035780,1708740646001,-155.0,0.00028346,2]
[315035781,1708740646011,-240.58386273,0.00033637,6]
[315035782,1708740646181,-147.26719631,0.00033637,6]
[315035783,1708740646190,-5507.90791227,0.00035,2]
[315035807,1708741832133,-422.57841615,0.00022858,2]
[315035808,1708741832143,-155.0,0.00022859,2]
[315035809,1708741832152,-155.0,0.0002286,2]
[315035810,1708741832162,-291.13478882,0.00022861,2]
[315035812,1708741832243,-48.31204358,0.00022861,2]
[315035813,1708741832253,-4171.97477202,0.00022899,2]
[315035814,1708741832262,-750.0,0.00025,3]
[315035815,1708741832271,-244.0,0.00025501,2]
[315035816,1708741832280,-244.0,0.00026871,2]
[315035817,1708741832289,-800.0,0.00027,3]
[315035818,1708741832308,-750.0,0.000274,2]
[315035819,1708741832320,-1634.0,0.000274,2]
[315035820,1708741832330,-178.71709172,0.00028,2]
[315035821,1708741832340,-244.0,0.00028241,2]
[315035822,1708741832349,-815.85,0.00028818,2]
[315035823,1708741832359,-255.45,0.000289,2]
[315035824,1708741832369,-325.74689402,0.00029,3]
[315035825,1708741832387,-524.25310598,0.00029,3]
[315035826,1708741832397,-244.0,0.00029611,2]
[315035827,1708741832406,-56.87573959,0.00029611,2]
[315035828,1708741832418,-443.11426041,0.00029611,2]
[315035829,1708741832428,-59.27537588,0.0003,4]
[315035830,1708741832440,-95.72462412,0.0003,4]
[315035831,1708741832449,-429.50377243,0.00030032,4]
[315035832,1708741832460,-1131.25448696,0.00030032,4]
[315035833,1708741832470,-2683.67,0.00030033,2]
[315035834,1708741832479,-2278.13067778,0.00030084,2]
[315035835,1708741832491,-1154.08812149,0.00030084,2]
[315035836,1708741832503,-20467.78120073,0.00030084,2]
[315035837,1708741832513,-108.718408,0.000301,2]
[315035838,1708741832526,-499.15974436,0.000301,2]
[315035840,1708741832538,-1026.27868448,0.000301,2]
[315035842,1708741832547,-715.45007063,0.0003042,2]
[315035844,1708741832558,-36.18992937,0.0003042,2]
[315035846,1708741832568,-2000.0,0.00030439,2]
[315035848,1708741832577,-225.14169666,0.00030522,2]
[315035850,1708741832589,-52.86830334,0.00030522,2]
[315035851,1708741832599,-176.89,0.00030531,2]
[315035853,1708741832608,-250.0,0.0003054,2]
[315035855,1708741832618,-417.95,0.00030666,3]
[315035856,1708741832627,-278.01,0.00030698,2]
[315035857,1708741832637,-150.0,0.00030717,2]
[315035858,1708741832647,-15.82115924,0.0003077,2]
[315035859,1708741832662,-152.22884076,0.0003077,2]
[315035860,1708741832671,-3861.0,0.000308,2]
[315035861,1708741832681,-15416.3709896,0.000308,2]
[315035862,1708741832693,-1419.6911602,0.000308,2]
[315035877,1708741838232,-339.4468324,0.00022858,2]
[315035878,1708741838242,-10996.9378502,0.000308,2]
[315035879,1708741838251,-278.01,0.00030874,2]
[315035880,1708741838261,-244.0,0.00030981,2]
[315035881,1708741838270,-900.0,0.00031,3]
[315035882,1708741838280,-278.01,0.00031051,2]
[315035883,1708741838289,-815.85,0.00031081,2]
[315035884,1708741838298,-221.9,0.00031111,2]
[315035885,1708741838307,-954.92,0.00031153,2]
[315035886,1708741838317,-278.01,0.00031227,2]
[315035887,1708741838336,-278.01,0.00031403,2]
[315035888,1708741838346,-19999.99,0.00031426,2]
[315035889,1708741838355,-430.80587118,0.000315,2]
[315035890,1708741838365,-1500.0,0.000315,2]
[315035891,1708741838374,-278.01,0.0003158,2]
[315035892,1708741838384,-278.01,0.00031756,2]
[315035893,1708741838393,-1000.0,0.000318,2]
[315035894,1708741838402,-214.5723,0.00031892,2]
[315035895,1708741838412,-278.01,0.00031932,2]
[315035896,1708741838421,-232.07,0.00031937,2]
[315035897,1708741838431,-8008.95624105,0.00031991,4]
[315035898,1708741838442,-751.64,0.00032063,2]
[315035899,1708741838451,-278.01,0.00032109,2]
[315035900,1708741838461,-244.0,0.00032351,2]
[315035901,1708741838470,-612.6286,0.000327,2]
[315035902,1708741838480,-155.0,0.00032734,2]
[315035903,1708741838490,-177.78,0.00032734,2]
[315035904,1708741838499,-5200.35270637,0.00032777,2]
[315035905,1708741838509,-39404.36374975,0.00032777,2]
[315035906,1708741838518,-161.82,0.00032877,2]
[315035907,1708741838528,-319.29,0.00032877,2]
[315035908,1708741838537,-150.0,0.00032877,2]
[315035909,1708741838546,-55755.14,0.00032877,2]
[315035910,1708741838556,-161.89,0.00032877,2]
[315035911,1708741838565,-250.0,0.00032877,2]
[315035912,1708741838575,-8000.0,0.000329,2]
[315035913,1708741838588,-950.0,0.00033,3]
[315035914,1708741838599,-150.0,0.00033136,2]
[315035915,1708741838609,-151.0,0.0003317,120]
[315035916,1708741838619,-177.78,0.00033282,2]
[315035917,1708741838629,-232.07,0.00033307,2]
[315035918,1708741838640,-815.85,0.00033345,2]
[315035919,1708741838649,-1000.0,0.00033395,2]
[315035920,1708741838659,-598.15701954,0.00033403,2]
[315035921,1708741838669,-171.0,0.000335,2]
[315035922,1708741838679,-1129.07,0.000335,2]
[315035923,1708741838689,-1129.07,0.000335,2]
[315035924,1708741838699,-1129.07,0.000335,2]
[315035925,1708741838708,-1129.07,0.000335,2]
[315035926,1708741838718,-1129.07,0.000335,2]
[315035927,1708741838727,-1129.07,0.000335,2]
[315035928,1708741838737,-1129.07,0.000335,2]
[315035929,1708741838747,-1129.07,0.000335,2]
[315035930,1708741838757,-1129.07,0.000335,2]
[315035931,1708741838767,-1129.07,0.000335,2]
[315035932,1708741838778,-1129.07,0.000335,2]
[315035933,1708741838789,-1129.07,0.000335,2]
[315035934,1708741838799,-1129.07,0.000335,2]
[315035935,1708741838809,-1129.07,0.000335,2]
[315035936,1708741838819,-1129.07,0.000335,2]
[315035937,1708741838829,-1129.07,0.000335,2]
[315035938,1708741838838,-1129.07,0.000335,2]
[315035939,1708741838851,-1129.07,0.000335,2]
[315035940,1708741838865,-1129.07,0.000335,2]
[315035941,1708741838875,-1129.07,0.000335,2]
[315035942,1708741838888,-155.14042364,0.00033624,6]
[315035943,1708741838898,-174.50442647,0.00033624,2]
[315035944,1708741838907,-2805.55674606,0.00033635,2]
[315035945,1708741838917,-751.64,0.00033707,2]
[315035946,1708741838927,-415.0,0.00033721,2]
[315035947,1708741838938,-19935.33255422,0.00033723,2]
[315035948,1708741838952,-262127.94904129,0.00033723,2]
[315035949,1708741839239,-712.17617836,0.00033723,2]
[315035950,1708741839255,-7519.00575706,0.00033723,2]
[315035951,1708741839268,-1003.70180802,0.00033723,2]
[315035952,1708741839280,-598.62796997,0.00033723,2]
[315035953,1708741839391,-1014.998612,0.00033723,2]
[315035954,1708741839406,-297.12686332,0.00033723,2]
[315035955,1708741839418,-27712.07441361,0.00033723,2]
[315035956,1708741839435,-11006.33863532,0.00033723,2]
[315035957,1708741839463,-2280.21652244,0.00033723,2]
[315035958,1708741840770,-7922.17786483,0.00033723,2]
[315035959,1708741840782,-8947.21879473,0.00033723,2]
[315035960,1708741840794,-8943.78386462,0.00033723,2]
[315035961,1708741840806,-9077.54866152,0.00033723,2]
[315035962,1708741840818,-8943.84023489,0.00033723,2]
[315035963,1708741845671,-567.01563631,0.00033722,4]
[315035964,1708741845680,-622.04659863,0.00033723,2]
[315035969,1708741845803,-892.07,0.00033723,2]
[315035970,1708741845815,-2348.32421347,0.00033723,2]
[315035973,1708741845827,-28334.87198259,0.00033723,2]
[315035975,1708741845838,-492.94652435,0.00033723,2]
[315035980,1708741845962,-11139.050011,0.00033723,2]
[315035981,1708741846028,-155.0,0.00033722,4]
[315035982,1708741846038,-610.22261278,0.00033723,2]
[315035983,1708741846049,-11186.20906966,0.00033723,2]
[315035984,1708741846060,-315.14124171,0.00033723,2]
[315035985,1708741846071,-651.06340159,0.00033723,2]
[315035986,1708741846093,-835.04991627,0.00033723,2]
[315035987,1708741846104,-559.74644413,0.00033723,2]
[315035988,1708741846119,-1020.5000005,0.00033723,2]
[315035989,1708741846130,-7329.91056802,0.00033723,2]
[315035990,1708741846142,-11262.93420633,0.00033723,2]
[315035993,1708741846174,-2512.81682625,0.00033723,2]
[315035995,1708741846186,-848.89,0.00033723,2]
[315035996,1708741846198,-1190.88001,0.00033723,2]
[315035997,1708741846209,-6895.33541699,0.00033723,2]
[315035998,1708741846220,-6653.02724085,0.00033723,2]
[315035999,1708741846244,-43647.24126578,0.00033723,2]
[315036000,1708741846255,-3882.42046224,0.00033723,2]
[315036001,1708741846266,-708.40080193,0.00033723,2]
[315036002,1708741846329,-289.63799347,0.00033723,2]
[315036003,1708741846341,-8256.58286036,0.00033723,2]
[315036004,1708741846352,-507.30573655,0.00033723,2]
[315036005,1708741846363,-3134.3328891,0.00033723,2]
[315036006,1708741846374,-20905.01029944,0.00033723,2]
[315036007,1708741846385,-1174.00153585,0.00033723,2]
[315036008,1708741846404,-578.97664646,0.00033723,2]
[315036009,1708741846439,-609.20839873,0.00033723,2]
[315036010,1708741846498,-495.22347624,0.00033723,2]
[315036011,1708741846510,-1868.55874728,0.00033723,2]
[315036012,1708741846521,-57897.33637654,0.00033723,2]
[315036013,1708741846532,-3160.5631174,0.00033723,2]
[315036014,1708741846613,-63146.14138868,0.00033723,2]
[315036059,1708743032314,-155.0,0.00022661,2]
[315036060,1708743032323,-206.29928259,0.00022662,2]
[315036061,1708743032332,-155.0,0.0002276,2]
[315036062,1708743032343,-150.0,0.00022761,2]
[315036063,1708743032353,-2755.00557642,0.00022762,2]
[315036064,1708743032365,-2146.10851209,0.00022762,2]
[315036065,1708743032374,-2329.27825589,0.00022762,2]
[315036066,1708743032385,-1584.58658033,0.00022762,2]
[315036067,1708743032400,-516.09812629,0.00022762,2]
[315036068,1708743032479,-579.93156402,0.00022762,2]
[315036069,1708743032490,-3043.78083493,0.00022762,2]
[315036070,1708743032503,-1095.04735849,0.00022762,2]
[315036071,1708743032538,-1639.97491973,0.00022762,2]
[315036072,1708743032549,-1394.19054399,0.00022762,2]
[315036073,1708743032601,-386.99443255,0.00022762,2]
[315036074,1708743032612,-1129.22127489,0.00022762,2]
[315036075,1708743032623,-2587.50978063,0.00022762,2]
[315036076,1708743032656,-389.68,0.00022762,2]
[315036077,1708743032668,-1035.89321566,0.00022762,2]
[315036083,1708743038328,-401.55049315,0.00022762,2]
[315036084,1708743038409,-1122.94407473,0.00022762,2]
[315036085,1708743038583,-3783.29395424,0.00022762,2]
[315036086,1708743038598,-31649.97839281,0.00022762,2]
[315036087,1708743038610,-7770.2282,0.00022763,2]
[315036088,1708743038622,-861.68,0.00022794,2]
[315036089,1708743038633,-177.78,0.00022999,2]
[315036090,1708743038644,-177.78,0.00023547,2]
[315036091,1708743038655,-281.43,0.00023547,2]
[315036092,1708743038667,-612.6286,0.000238,2]
[315036093,1708743038678,-7167.1189,0.00023899,2]
[315036094,1708743038689,-207.631,0.00023899,2]
[315036096,1708743038700,-878.9221,0.00023899,2]
[315036098,1708743038712,-5387.55065607,0.00023899,2]
[315036100,1708743038723,-166.22188248,0.00023899,2]
[315036102,1708743038734,-162.69040506,0.00023899,2]
[315036103,1708743038746,-307.3629333,0.00023899,2]
[315036104,1708743038758,-622.72747345,0.00023899,2]
[315036105,1708743038769,-11244.26579347,0.000239,2]
[315036106,1708743038838,-6604.07940653,0.000239,2]
[315036107,1708743038854,-5000.0,0.000239,2]
[315036108,1708743038869,-1383.00824113,0.00023999,2]
[315036109,1708743038884,-1063708.90742969,0.00023999,2]
[315036110,1708743038893,-499.99,0.00023999,2]
[315036111,1708743038904,-481575.15786128,0.00024,2]
[315036112,1708743038914,-177.78,0.00024095,2]
[315036113,1708743038924,-177.78,0.00024643,2]
[315036114,1708743038934,-2164.56319365,0.00025,2]
[315036115,1708743038944,-750.0,0.00025,3]
[315036116,1708743038953,-210.0,0.00025037,2]
[315036117,1708743038963,-861.68,0.00025058,2]
[315036118,1708743038973,-5387.55065601,0.00025153,2]
[315036119,1708743038983,-177.78,0.00025191,2]
[315036120,1708743039294,-1000.0,0.00025223,2]
[315036121,1708743039319,-1377.99,0.00025231,2]
[315036122,1708743039334,-765.12448514,0.000254,2]
[315036123,1708743039344,-260.0,0.00025401,2]
[315036124,1708743039355,-250.0,0.0002559,2]
[315036125,1708743039364,-232.07,0.00025736,2]
[315036126,1708743039374,-177.78,0.00025739,2]
[315036127,1708743039383,-1791.64097391,0.00026044,2]
[315036128,1708743039393,-1791.64097391,0.00026044,2]
[315036129,1708743039402,-150.0,0.00026079,2]
[315036130,1708743039415,-2000.0,0.00026146,2]
[315036131,1708743039425,-166.22188244,0.00026216,3]
[315036132,1708743039434,-23900.0,0.00026265,2]
[315036133,1708743039444,-168.05,0.00026265,2]
[315036134,1708743039453,-177.78,0.00026287,2]
[315036135,1708743039462,-5387.55065601,0.00026406,2]
[315036136,1708743039472,-162.69040503,0.00026649,2]
[315036137,1708743039481,-260.0,0.00026771,2]
[315036138,1708743039490,-39404.36374975,0.00026798,2]
[315036139,1708743039500,-39404.36374969,0.00026798,2]
[315036140,1708743039510,-6207.21907925,0.00026798,2]
[315036141,1708743039520,-6207.21907921,0.00026798,2]
[315036142,1708743039529,-180.97207277,0.00026835,2]
[315036143,1708743039539,-1377.99,0.00026875,2]
[315036144,1708743039548,-190.13,0.00026897,2]
[315036145,1708743039558,-800.0,0.00027,3]
[315036146,1708743039568,-232.07,0.00027106,2]
[315036147,1708743039577,-861.68,0.00027322,2]
[315036148,1708743039586,-155.0,0.00027397,2]
[315036149,1708743039596,-1275.11,0.00027397,2]
[315036150,1708743039605,-750.0,0.000274,2]
[315036151,1708743039614,-1275.11,0.00027556,2]
[315036152,1708743039623,-23.98447353,0.0002766,2]
[315036153,1708743039636,-5363.56618248,0.0002766,2]
[315036154,1708743039645,-1275.11,0.00027714,2]
[315036155,1708743039654,-190.13,0.00027849,2]
[315036156,1708743039664,-1275.11,0.00027872,2]
[315036157,1708743039673,-169039.28497978,0.00028,2]
[315036158,1708743039683,-1000.0,0.00028,2]
[315036159,1708743039693,-205.39522038,0.00028,2]
[315036160,1708743039702,-1275.11,0.0002803,2]
[315036161,1708743039712,-3191.32,0.00028055,2]
[315036162,1708743039721,-6207.21907921,0.00028121,2]
[315036163,1708743039731,-260.0,0.00028141,2]
[315036164,1708743039740,-1275.11,0.00028189,2]
[315036165,1708743039750,-71570.59357944,0.00028316,4]
[315036172,1708743040904,-250.0,0.00028316,4]
[315036173,1708743040960,-500.0,0.00028316,4]
[315036174,1708743040972,-847.93303247,0.00028316,4]
[315036175,1708743041019,-94808.60844892,0.00028316,4]
[315036176,1708743041081,-768.43409717,0.00028316,4]
[315036177,1708743041093,-657.02183902,0.00028316,4]
[315036178,1708743041105,-1245.01514611,0.00028316,4]
[315036209,1708743043589,-499.99,0.00026146,2]
[315036210,1708743043598,-4882.2782481,0.00028316,4]
[315036211,1708743043646,-320.26401847,0.00028316,4]
[315036214,1708743046358,-155.0,0.00028315,2]
[315036215,1708743046367,-107264.64661385,0.00028316,4]
[315036216,1708743046527,-11.53479653,0.00028316,4]
[315036220,1708743426146,811.69,0.00022139,2]
[315036221,1708743772531,3183.51,0.00022345,2]
[315036222,1708743796327,744.23,0.00022327,2]
[315036223,1708743808872,800.0,0.0002197,2]
[315036224,1708743827348,243.85,0.00021933,2]
[315036225,1708743839120,200.0,0.00021933,2]
[315036226,1708743858315,923.05,0.00021933,2]
[315036227,1708743878532,940.66,0.00020015,2]
[315036228,1708743878711,940.66,0.00022279,2]
[315036229,1708743899712,593.95,0.00021933,2]
[315036230,1708744023836,168.05,0.00021922,2]
[315036231,1708744028117,200.0,0.00021922,2]
[315036232,1708744046990,200.0,0.00021922,2]
[315036233,1708744076830,2144.45,0.00021906,2]
[315036234,1708744087118,2000.0,0.00021917,2]
[315036235,1708744095417,150.0,0.00021939,2]
[315036236,1708744119368,250.0,0.00021939,2]
[315036239,1708744166957,7538.9,0.00021924,2]
[315036240,1708744166984,16361.1,0.00021924,2]
[315036243,1708744190673,500.0,0.00021998,2]
[315036244,1708744229443,500.0,0.00021967,2]
[315036251,1708744234153,-155.0,0.00022409,2]
[315036252,1708744234162,-422.57841615,0.0002241,2]
[315036253,1708744234172,-765.12448514,0.00022411,2]
[315036254,1708744234181,-744.23,0.00022444,2]
[315036255,1708744234191,-150.0,0.00022449,2]
[315036256,1708744234200,-150.0,0.00022449,2]
[315036257,1708744234210,-744.23,0.00022562,2]
[315036258,1708744234219,-165.87,0.00022579,2]
[315036259,1708744234228,-2101.91,0.00022603,2]
[315036260,1708744234238,-499.99,0.00022603,2]
[315036261,1708744234247,-744.23,0.00022679,2]
[315036262,1708744234256,-744.23,0.00022797,2]
[315036263,1708744234265,-165.34113703,0.00022798,2]
[315036264,1708744234274,-9166.43981473,0.00022798,2]
[315036265,1708744234284,-221.62917659,0.00022798,2]
[315036266,1708744234293,-228.24077246,0.00022798,2]
[315036267,1708744234302,-160.20998842,0.00022887,2]
[315036268,1708744234312,-2373.492,0.00022897,2]
[315036269,1708744234321,-390302.66901968,0.00022897,2]
[315036270,1708744234334,-2504.30253915,0.00022897,2]
[315036271,1708744234345,-1378.26762468,0.00022897,2]
[315036272,1708744234361,-425.77980292,0.00022897,2]
[315036273,1708744234372,-900.90785435,0.00022897,2]
[315036274,1708744234412,-127693.81189819,0.00022897,2]
[315036275,1708744234423,-1553.24725492,0.00022897,2]
[315036276,1708744234439,-412.77292295,0.00022897,2]
[315036280,1708744237502,-312.93476706,0.00022897,2]
[315036281,1708744237743,-538224.21374579,0.00022897,2]
[315036282,1708744237753,-1785.67,0.00022898,2]
[315036283,1708744237762,-1792.38,0.00022898,2]
[315036284,1708744237772,-6829.343,0.00022898,2]
[315036285,1708744237781,-13063.0654,0.00022898,2]
[315036286,1708744237791,-5231.2416,0.00022898,2]
[315036287,1708744237800,-1000.0,0.00022898,2]
[315036288,1708744237809,-194487.9688,0.00022898,2]
[315036289,1708744237819,-1829.6,0.00022898,2]
[315036290,1708744237829,-1821.65,0.00022899,2]
[315036291,1708744237838,-1795.53,0.000229,2]
[315036292,1708744237847,-5000.0,0.000229,2]
[315036293,1708744237857,-744.23,0.00022914,2]
[315036294,1708744237866,-54716.96950415,0.00022997,2]
[315036295,1708744237875,-1836.41,0.00022998,2]
[315036296,1708744237884,-1825.91,0.00022998,2]
[315036297,1708744237893,-1809.8,0.00022998,2]
[315036298,1708744237903,-1006.3572,0.00022999,2]
[315036299,1708744237912,-120636.78646953,0.00023,2]
[315036300,1708744237921,-744.23,0.00023032,2]
[315036301,1708744237931,-744.23,0.00023149,2]
[315036302,1708744237940,-744.23,0.00023267,2]
[315036303,1708744237949,-300.0,0.00023342,2]
[315036304,1708744237959,-744.23,0.00023384,2]
[315036305,1708744237968,-744.23,0.00023502,2]
[315036306,1708744237977,-165.87,0.00023511,2]
[315036307,1708744237987,-744.23,0.00023619,2]
[315036308,1708744237996,-744.23,0.00023737,2]
[315036309,1708744238005,-169.55,0.00023746,2]
[315036310,1708744238014,-500.0,0.00023799,2]
[315036311,1708744238023,-744.23,0.00023854,2]
[315036312,1708744238033,-100000.0,0.00023899,2]
[315036313,1708744238042,-744.23,0.00023972,2]
[315036314,1708744238051,-373.34962986,0.00023983,2]
[315036315,1708744238061,-163.02413308,0.00023983,2]
[315036316,1708744238071,-3183.51,0.00023989,2]
[315036317,1708744238081,-481575.15786128,0.00024,2]
[315036318,1708744238090,-402.9,0.00024083,2]
[315036319,1708744238100,-744.23,0.00024089,2]
[315036320,1708744238109,-9166.4398147,0.00024152,2]
[315036321,1708744238118,-744.23,0.00024207,2]
[315036322,1708744238128,-744.23,0.00024324,2]
[315036323,1708744238137,-1322.32,0.00024384,2]
[315036324,1708744238146,-2659.43,0.00024384,2]
[315036325,1708744238155,-744.23,0.00024442,2]
[315036326,1708744238165,-165.87,0.00024443,2]
[315036327,1708744238174,-940.66,0.00024543,2]
[315036328,1708744238183,-744.23,0.00024559,2]
[315036329,1708744238193,-250.0,0.00024658,2]
[315036330,1708744238202,-210.0,0.00024693,2]
[315036331,1708744238212,-300.0,0.00024712,2]
[315036332,1708744238221,-800.0,0.00024716,2]
[315036333,1708744238230,-158.64,0.00024751,2]
[315036334,1708744238239,-221.62917659,0.00024925,2]
[315036335,1708744238248,-402.9,0.00024934,2]
[315036336,1708744238258,-165.87,0.00025374,2]
[315036337,1708744238267,-191.0,0.00025401,2]
[315036338,1708744238276,-738.08974886,0.000255,2]
[315036339,1708744238286,-9166.4398147,0.00025505,2]
[315036340,1708744238295,-3183.51,0.00025632,2]
[315036341,1708744238306,-402.9,0.00025786,2]
[315036342,1708744238316,-228.24077245,0.00025824,2]
[315036343,1708744238325,-158.64,0.00025989,2]
[315036344,1708744238334,-200.0,0.00026052,2]
[315036345,1708744238343,-150.0,0.00026079,2]
[315036346,1708744238353,-165.87,0.00026306,2]
[315036347,1708744238362,-177.78,0.00026463,2]
[315036348,1708744238371,-402.9,0.00026638,2]
[315036349,1708744238380,-165.34113703,0.00026698,2]
[315036350,1708744238389,-800.0,0.0002674,2]
[315036351,1708744238398,-191.0,0.00026771,2]
[315036352,1708744238407,-9227.81819789,0.00026798,2]
[315036353,1708744238416,-9227.81819786,0.00026798,2]
[315036354,1708744238425,-39404.36374975,0.00026798,2]
[315036355,1708744238434,-39404.36374969,0.00026798,2]
[315036356,1708744238443,-940.66,0.00026807,2]
[315036357,1708744238452,-9166.4398147,0.00026859,2]
[315036358,1708744238461,-39404.36374969,0.00026936,2]
[315036359,1708744238470,-511.36774089,0.00026999,2]
[315036360,1708744238481,-250.0,0.00026999,2]
[315036361,1708744238490,-177.78,0.00027011,2]
[315036362,1708744238499,-9227.81819786,0.00027043,2]
[315036363,1708744238508,-221.62917659,0.00027052,3]
[315036364,1708744238517,-158.64,0.00027226,2]
[315036365,1708744238526,-474.15317693,0.00027273,2]
[315036366,1708744238536,-3183.51,0.00027276,2]
[315036367,1708744238545,-153.53893252,0.00027397,7]
[315036368,1708744238555,-152.36348205,0.00027397,7]
[315036369,1708744238568,-151.29075386,0.00027397,7]
[315036370,1708744238577,-155.0,0.00027397,2]
[315036371,1708744238586,-1976.9,0.00027397,2]
[315036372,1708744238596,-750.0,0.000274,2]
[315036373,1708744238605,-157.54,0.000274,2]
[315036374,1708744238615,-157.54,0.000274,2]
[315036375,1708744238624,-157.54,0.000274,2]
[315036376,1708744238633,-157.54,0.000274,2]
[315036377,1708744238643,-157.54,0.000274,2]
[315036378,1708744238652,-157.54,0.000274,2]
[315036379,1708744238661,-157.54,0.000274,2]
[315036380,1708744238670,-168.05,0.00027402,2]
[315036381,1708744238679,-800.0,0.00027463,2]
[315036382,1708744238688,-402.9,0.0002749,2]
[315036383,1708744238698,-1008.4955,0.00027499,2]
[315036384,1708744238899,-1976.9,0.00027556,2]
[315036385,1708744238909,-150.0,0.00027644,7]
[315036386,1708744238919,-150.0,0.00027644,7]
[315036387,1708744238928,-1976.9,0.00027714,2]
[315036388,1708744238938,-1976.9,0.00027872,2]
[315036389,1708744238947,-150.0,0.0002789,7]
[315036390,1708744238956,-150.0,0.0002789,7]
[315036391,1708744238965,-169039.28497978,0.00028,2]
[315036392,1708744238974,-1000.0,0.00028,2]
[315036393,1708744238983,-205.39522038,0.00028,2]
[315036394,1708744238994,-151.0,0.00028,7]
[315036395,1708744239003,-151.0,0.00028,7]
[315036396,1708744239012,-11245.6,0.00028,2]
[315036397,1708744239021,-1976.9,0.0002803,2]
[315036398,1708744239030,-150.0,0.00028088,2]
[315036399,1708744239040,-150.0,0.00028137,7]
[315036400,1708744239049,-191.0,0.00028141,2]
[315036401,1708744239059,-150.0,0.00028187,2]
[315036402,1708744239069,-1976.9,0.00028189,2]
[315036403,1708744239078,-19999.99,0.00028203,2]
[315036404,1708744239088,-1080.47,0.00028203,2]
[315036405,1708744239098,-9166.4398147,0.00028213,2]
[315036406,1708744239108,-221.49150699,0.00028314,2]
[315036407,1708744239117,-178.8444591,0.00028315,2]
[315036408,1708744239127,-402.9,0.00028341,2]
[315036409,1708744239137,-1976.9,0.00028347,2]
[315036410,1708744239146,-1976.9,0.00028505,2]
[315036411,1708744239156,-1976.9,0.00028664,2]
[315036412,1708744239166,-155.0,0.00028767,2]
[315036413,1708744239175,-262.21,0.000288,2]
[315036414,1708744239185,-1976.9,0.00028822,2]
[315036415,1708744239194,-228.24077245,0.00028849,2]